[Event "Snabb-SM för veteraner, 65+ 2019"]
[Site "Schackcentrum, Vegagatan 20, Gothenburg, Sweden"]
[Date "2019.10.06"]
[Round "7.2"]
[White "Fransson, Lennart"]
[Black "Green, Per"]
[Result "1-0"]
[TimeControl "15 minutes + 10 seconds per move from move one"]
[WhiteFideId "1706756"]
[BlackFideId "1703811"]
[WhiteElo "1983"]
[BlackElo "1923"]

1. c4 {[%clk 00:15:16]} {[%emt 00:00:02]} Nf6 {[%clk 00:15:05]} {[%emt
00:00:16]} 2. g3 {[%clk 00:15:24]} {[%emt 00:00:03]} e6 {[%clk 00:15:11]}
{[%emt 00:00:05]} 3. Bg2 {[%clk 00:15:31]} {[%emt 00:00:02]} d5 {[%clk
00:15:18]} {[%emt 00:00:04]} 4. Nf3 {[%clk 00:15:35]} {[%emt 00:00:04]} Be7
{[%clk 00:15:09]} {[%emt 00:00:20]} 5. O-O {[%clk 00:15:41]} {[%emt 00:00:04]}
O-O {[%clk 00:15:16]} {[%emt 00:00:04]} 6. Qc2 {[%clk 00:15:27]} {[%emt
00:00:23]} b6 {[%clk 00:15:05]} {[%emt 00:00:23]} 7. b3 {[%clk 00:15:17]}
{[%emt 00:00:19]} Bb7 {[%clk 00:14:57]} {[%emt 00:00:19]} 8. Bb2 {[%clk
00:15:16]} {[%emt 00:00:10]} c5 {[%clk 00:14:36]} {[%emt 00:00:31]} 9. cxd5
{[%clk 00:15:04]} {[%emt 00:00:21]} Nxd5 {[%clk 00:14:14]} {[%emt 00:00:33]} 10.
Rd1 {[%clk 00:14:14]} {[%emt 00:00:59]} Nb4 {[%clk 00:12:42]} {[%emt 00:01:43]}
11. Qc1 {[%clk 00:14:21]} {[%emt 00:00:02]} Bf6 {[%clk 00:11:58]} {[%emt
00:00:55]} 12. Nc3 {[%clk 00:13:21]} {[%emt 00:01:10]} N8c6 {[%clk 00:10:42]}
{[%emt 00:01:26]} 13. a3 {[%clk 00:12:11]} {[%emt 00:01:19]} Na6 {[%clk
00:09:46]} {[%emt 00:01:07]} 14. Ne4 {[%clk 00:11:59]} {[%emt 00:00:21]} Bxb2
{[%clk 00:09:39]} {[%emt 00:00:18]} 15. Qxb2 {[%clk 00:12:08]} {[%emt
00:00:02]} Qe7 {[%clk 00:08:58]} {[%emt 00:00:51]} 16. Rac1 {[%clk 00:11:53]}
{[%emt 00:00:24]} Rfd8 {[%clk 00:09:01]} {[%emt 00:00:08]} 17. d3 {[%clk
00:11:27]} {[%emt 00:00:34]} Nc7 {[%clk 00:07:45]} {[%emt 00:01:27]} 18. d4
{[%clk 00:10:35]} {[%emt 00:01:02]} cxd4 {[%clk 00:06:32]} {[%emt 00:01:24]} 19.
Nxd4 {[%clk 00:10:29]} {[%emt 00:00:16]} Nxd4 {[%clk 00:06:20]} {[%emt
00:00:22]} 20. Rxd4 {[%clk 00:10:36]} {[%emt 00:00:03]} Rxd4 {[%clk 00:06:06]}
{[%emt 00:00:25]} 21. Qxd4 {[%clk 00:10:43]} {[%emt 00:00:02]} Nd5 {[%clk
00:05:41]} {[%emt 00:00:35]} 22. b4 {[%clk 00:10:15]} {[%emt 00:00:38]} Rd8
{[%clk 00:05:24]} {[%emt 00:00:28]} 23. Qb2 {[%clk 00:08:39]} {[%emt 00:01:45]}
h6 {[%clk 00:05:00]} {[%emt 00:00:34]} 24. Nd2 {[%clk 00:08:31]} {[%emt
00:00:17]} Nf6 {[%clk 00:03:50]} {[%emt 00:01:21]} 25. Bxb7 {[%clk 00:07:57]}
{[%emt 00:00:45]} Qxb7 {[%clk 00:03:58]} {[%emt 00:00:02]} 26. Qc2 {[%clk
00:07:19]} {[%emt 00:00:47]} Qa6 {[%clk 00:02:51]} {[%emt 00:01:17]} 27. Nb1
{[%clk 00:06:47]} {[%emt 00:00:42]} Nd5 {[%clk 00:02:10]} {[%emt 00:00:52]} 28.
e4 {[%clk 00:06:39]} {[%emt 00:00:17]} Nf6 {[%clk 00:02:09]} {[%emt 00:00:11]}
29. Kg2 {[%clk 00:05:51]} {[%emt 00:00:58]} Qb7 {[%clk 00:02:11]} {[%emt
00:00:08]} 30. f3 {[%clk 00:05:56]} {[%emt 00:00:05]} Qa6 {[%clk 00:01:49]}
{[%emt 00:00:33]} 31. Kf2 {[%clk 00:05:32]} {[%emt 00:00:33]} Qb7 {[%clk
00:01:02]} {[%emt 00:00:58]} 32. Qc7 {[%clk 00:04:53]} {[%emt 00:00:48]} Rd7
{[%clk 00:01:00]} {[%emt 00:00:12]} 33. Qxb7 {[%clk 00:04:43]} {[%emt
00:00:20]} Rxb7 {[%clk 00:01:09]} {[%emt 00:00:01]} 34. Rc8+ {[%clk 00:04:50]}
{[%emt 00:00:02]} Kh7 {[%clk 00:01:18]} {[%emt 00:00:02]} 35. Ke3 {[%clk
00:04:48]} {[%emt 00:00:12]} Rd7 {[%clk 00:01:11]} {[%emt 00:00:18]} 36. Nc3
{[%clk 00:04:49]} {[%emt 00:00:09]} g6 {[%clk 00:00:58]} {[%emt 00:00:23]} 37.
Nb5 {[%clk 00:04:48]} {[%emt 00:00:11]} a6 {[%clk 00:00:38]} {[%emt 00:00:30]}
38. Nc7 {[%clk 00:04:12]} {[%emt 00:00:46]} a5 {[%clk 00:00:41]} {[%emt
00:00:08]} 39. bxa5 {[%clk 00:03:51]} {[%emt 00:00:31]} bxa5 {[%clk 00:00:49]}
{[%emt 00:00:02]} 40. Nb5 {[%clk 00:03:59]} {[%emt 00:00:01]} a4 {[%clk
00:00:43]} {[%emt 00:00:16]} 41. Rc7 {[%clk 00:03:45]} {[%emt 00:00:24]} Kg7
{[%clk 00:00:17]} {[%emt 00:00:35]} 42. Rxd7 {[%clk 00:03:51]} {[%emt
00:00:03]} Nxd7 {[%clk 00:00:27]} {[%emt 00:00:01]} 43. Nc3 {[%clk 00:03:56]}
{[%emt 00:00:05]} Nb6 {[%clk 00:00:18]} {[%emt 00:00:19]} 44. Kd4 {[%clk
00:03:57]} {[%emt 00:00:06]} Kf6 {[%clk 00:00:26]} {[%emt 00:00:03]} 45. f4
{[%clk 00:03:58]} {[%emt 00:00:09]} Ke7 {[%clk 00:00:36]} 46. Kc5 {[%clk
00:04:01]} {[%emt 00:00:07]} Nd7+ {[%clk 00:00:43]} {[%emt 00:00:04]} 47. Kc6
{[%clk 00:04:00]} {[%emt 00:00:11]} Nb8+ {[%clk 00:00:48]} {[%emt 00:00:05]} 48.
Kb5 {[%clk 00:04:03]} {[%emt 00:00:07]} Kd6 {[%clk 00:00:56]} {[%emt 00:00:03]}
49. Nxa4 {[%clk 00:04:09]} {[%emt 00:00:04]} Nc6 {[%clk 00:01:04]} {[%emt
00:00:01]} 50. Kc4 {[%clk 00:04:08]} {[%emt 00:00:11]} Na5+ {[%clk 00:01:08]}
{[%emt 00:00:07]} 51. Kd3 {[%clk 00:03:53]} {[%emt 00:00:24]} Kc6 {[%clk
00:01:16]} {[%emt 00:00:03]} 52. Nc3 {[%clk 00:03:54]} {[%emt 00:00:09]} Kc5
{[%clk 00:01:19]} {[%emt 00:00:07]} 53. e5 {[%clk 00:03:47]} {[%emt 00:00:16]}
Nc4 {[%clk 00:01:28]} {[%emt 00:00:01]} 54. Ne4+ {[%clk 00:03:52]} {[%emt
00:00:05]} Kb5 {[%emt 00:00:16]} 55. a4+ {[%clk 00:03:37]} {[%emt 00:00:22]}
Kb4 {[%clk 00:01:31]} {[%emt 00:00:05]} 56. Nd6 {[%clk 00:03:38]} {[%emt
00:00:08]} Nb6 {[%clk 00:01:36]} {[%emt 00:00:06]} 57. a5 {[%clk 00:03:38]}
{[%emt 00:00:10]} Kxa5 {[%clk 00:01:43]} {[%emt 00:00:04]} 58. Nxf7 {[%clk
00:03:47]} {[%emt 00:00:01]} h5 {[%clk 00:01:45]} {[%emt 00:00:08]} 59. Nd8
{[%clk 00:03:42]} {[%emt 00:00:15]} Nd7 {[%emt 00:00:20]} 60. Nxe6 {[%clk
00:03:47]} {[%emt 00:00:03]} Kb5 {[%clk 00:01:38]} {[%emt 00:00:10]} 61. Kd4
{[%clk 00:03:25]} {[%emt 00:00:32]} Kc6 {[%clk 00:01:37]} {[%emt 00:00:11]} 62.
h3 {[%clk 00:03:30]} {[%emt 00:00:04]} Kb7 {[%clk 00:01:26]} {[%emt 00:00:22]}
63. Nc5+ {[%emt 00:00:03]} 1-0

[Event "Snabb-SM för veteraner, 65+ 2019"]
[Site "Schackcentrum, Vegagatan 20, Gothenburg, Sweden"]
[Date "2019.10.06"]
[Round "7.3"]
[White "Wahlstrom, Lennart"]
[Black "Degerfeldt, Sven"]
[Result "1/2-1/2"]
[TimeControl "15 minutes + 10 seconds per move from move one"]
[WhiteFideId "1706829"]
[BlackFideId "1717430"]
[WhiteElo "2109"]
[BlackElo "1822"]

1. e4 {[%clk 00:15:17]} {[%emt 00:00:02]} c5 {[%clk 00:15:20]} 2. Nf3 {[%clk
00:15:24]} {[%emt 00:00:04]} Nc6 {[%clk 00:15:20]} {[%emt 00:00:10]} 3. d4
{[%clk 00:15:31]} {[%emt 00:00:03]} cxd4 {[%clk 00:15:28]} {[%emt 00:00:02]} 4.
Nxd4 {[%clk 00:15:39]} {[%emt 00:00:02]} d6 {[%clk 00:15:34]} {[%emt 00:00:04]}
5. Be2 {[%clk 00:15:36]} {[%emt 00:00:12]} g6 {[%clk 00:15:36]} {[%emt
00:00:08]} 6. O-O {[%clk 00:15:32]} {[%emt 00:00:14]} Bg7 {[%clk 00:15:45]}
{[%emt 00:00:02]} 7. Nb3 {[%clk 00:15:40]} {[%emt 00:00:01]} Nf6 {[%clk
00:15:35]} {[%emt 00:00:19]} 8. Nc3 {[%clk 00:15:48]} {[%emt 00:00:02]} O-O
{[%clk 00:15:35]} {[%emt 00:00:10]} 9. Be3 {[%clk 00:15:45]} {[%emt 00:00:12]}
a6 {[%clk 00:14:57]} {[%emt 00:00:49]} 10. f4 {[%clk 00:15:25]} {[%emt
00:00:29]} e6 {[%clk 00:13:16]} {[%emt 00:01:52]} 11. Bf3 {[%clk 00:14:30]}
{[%emt 00:01:05]} Qc7 {[%clk 00:13:20]} {[%emt 00:00:06]} 12. a4 {[%clk
00:12:01]} {[%emt 00:02:39]} e5 {[%clk 00:10:12]} {[%emt 00:03:17]} 13. a5
{[%clk 00:09:44]} {[%emt 00:02:28]} exf4 {[%clk 00:09:47]} {[%emt 00:00:35]} 14.
Bxf4 {[%clk 00:09:51]} {[%emt 00:00:02]} Ne5 {[%clk 00:09:53]} {[%emt
00:00:05]} 15. Be2 {[%clk 00:08:43]} {[%emt 00:01:18]} Be6 {[%clk 00:09:43]}
{[%emt 00:00:20]} 16. Bg5 {[%clk 00:04:54]} {[%emt 00:03:59]} Ne8 {[%clk
00:07:48]} {[%emt 00:02:05]} 17. Nd4 {[%clk 00:04:11]} {[%emt 00:00:52]} h6
{[%clk 00:06:57]} {[%emt 00:01:00]} 18. Nxe6 {[%clk 00:04:12]} {[%emt
00:00:10]} fxe6 {[%clk 00:07:05]} {[%emt 00:00:02]} 19. Rxf8+ {[%clk 00:04:20]}
{[%emt 00:00:02]} Bxf8 {[%clk 00:07:12]} {[%emt 00:00:03]} 20. Bf4 {[%clk
00:04:17]} {[%emt 00:00:12]} Nf6 {[%clk 00:06:53]} {[%emt 00:00:29]} 21. Kh1
{[%clk 00:03:59]} {[%emt 00:00:29]} g5 {[%clk 00:06:50]} {[%emt 00:00:13]} 22.
Be3 {[%clk 00:03:19]} {[%emt 00:00:49]} Be7 {[%clk 00:06:57]} {[%emt 00:00:04]}
23. Bb6 {[%clk 00:03:04]} {[%emt 00:00:25]} Qc6 {[%clk 00:06:52]} {[%emt
00:00:14]} 24. Qd4 {[%clk 00:03:03]} {[%emt 00:00:11]} Nfd7 {[%clk 00:05:34]}
{[%emt 00:01:29]} 25. Rf1 {[%clk 00:01:37]} {[%emt 00:01:35]} Nxb6 {[%clk
00:05:21]} {[%emt 00:00:23]} 26. Qxb6 {[%clk 00:01:38]} {[%emt 00:00:09]} Qxb6
{[%clk 00:05:20]} {[%emt 00:00:12]} 27. axb6 {[%clk 00:01:47]} {[%emt
00:00:01]} Rc8 {[%clk 00:05:13]} {[%emt 00:00:16]} 28. Na4 {[%clk 00:00:45]}
{[%emt 00:01:12]} Bd8 {[%clk 00:04:06]} {[%emt 00:01:17]} 29. c3 {[%clk
00:00:28]} {[%emt 00:00:27]} Rc6 {[%clk 00:02:01]} {[%emt 00:02:15]} 30. Rd1
{[%clk 00:00:30]} {[%emt 00:00:07]} Bxb6 {[%clk 00:01:54]} {[%emt 00:00:18]} 31.
Rf1 {[%clk 00:00:17]} {[%emt 00:00:23]} Bd8 {[%clk 00:02:02]} {[%emt 00:00:02]}
32. g3 {[%clk 00:00:11]} {[%emt 00:00:16]} b5 {[%clk 00:02:07]} {[%emt
00:00:05]} 33. h4 {[%clk 00:00:17]} {[%emt 00:00:03]} bxa4 {[%clk 00:02:13]}
{[%emt 00:00:04]} 34. hxg5 {[%clk 00:00:25]} {[%emt 00:00:02]} Bxg5 {[%clk
00:02:22]} {[%emt 00:00:02]} 35. Ra1 {[%clk 00:00:31]} {[%emt 00:00:04]} Rb6
{[%clk 00:02:18]} {[%emt 00:00:14]} 36. Ra2 {[%clk 00:00:32]} {[%emt 00:00:10]}
Be3 {[%clk 00:02:11]} {[%emt 00:00:17]} 37. Kg2 {[%clk 00:00:38]} {[%emt
00:00:04]} Bc5 {[%clk 00:02:14]} {[%emt 00:00:07]} 38. Kh3 {[%clk 00:00:40]}
{[%emt 00:00:08]} d5 {[%clk 00:02:10]} {[%emt 00:00:14]} 39. exd5 {[%clk
00:00:46]} {[%emt 00:00:04]} exd5 {[%clk 00:02:19]} 40. Bd1 {[%clk 00:00:41]}
{[%emt 00:00:15]} Nc4 {[%clk 00:02:23]} {[%emt 00:00:06]} 41. Rxa4 {[%clk
00:00:35]} {[%emt 00:00:17]} Nxb2 {[%clk 00:02:31]} {[%emt 00:00:02]} 42. Rg4+
{[%clk 00:00:41]} {[%emt 00:00:03]} Kh8 {[%clk 00:02:36]} {[%emt 00:00:06]} 43.
Bf3 {[%clk 00:00:46]} {[%emt 00:00:05]} Rd6 {[%clk 00:02:38]} {[%emt 00:00:07]}
44. Rf4 {[%clk 00:00:41]} {[%emt 00:00:15]} Nd3 {[%clk 00:02:32]} {[%emt
00:00:16]} 45. Rf7 {[%clk 00:00:51]} Ne5 {[%clk 00:02:27]} {[%emt 00:00:17]} 46.
Rf8+ {[%clk 00:00:57]} {[%emt 00:00:04]} Kg7 {[%clk 00:02:35]} {[%emt
00:00:01]} 47. Rc8 {[%clk 00:01:06]} {[%emt 00:00:01]} Nxf3 {[%clk 00:02:23]}
{[%emt 00:00:22]} 48. Rxc5 {[%clk 00:01:14]} {[%emt 00:00:02]} Ng5+ {[%clk
00:02:27]} {[%emt 00:00:06]} 49. Kg4 {[%clk 00:01:22]} {[%emt 00:00:02]} Ne4
{[%clk 00:02:35]} {[%emt 00:00:02]} 50. Rc7+ {[%clk 00:01:30]} {[%emt
00:00:02]} Kg6 {[%clk 00:02:44]} {[%emt 00:00:01]} 51. Kf4 {[%clk 00:01:34]}
{[%emt 00:00:06]} Kf6 {[%clk 00:02:42]} {[%emt 00:00:11]} 52. c4 {[%clk
00:01:39]} {[%emt 00:00:05]} Ng5 {[%clk 00:02:41]} {[%emt 00:00:10]} 53. cxd5
{[%clk 00:01:46]} {[%emt 00:00:04]} a5 {[%clk 00:02:37]} {[%emt 00:00:15]} 54.
Rc5 {[%clk 00:01:50]} {[%emt 00:00:06]} a4 {[%clk 00:02:43]} {[%emt 00:00:04]}
55. Ra5 {[%clk 00:01:59]} Nf7 {[%clk 00:02:39]} {[%emt 00:00:14]} 56. g4 {[%clk
00:01:41]} {[%emt 00:00:28]} Ne5 {[%clk 00:02:12]} {[%emt 00:00:36]} 57. Rxa4
{[%clk 00:01:45]} {[%emt 00:00:06]} Nd3+ {[%clk 00:02:12]} {[%emt 00:00:10]} 58.
Kg3 {[%clk 00:01:22]} {[%emt 00:00:33]} Rxd5 {[%clk 00:02:13]} {[%emt
00:00:08]} 59. Kh4 {[%clk 00:01:29]} {[%emt 00:00:04]} Rd6 {[%clk 00:02:17]}
{[%emt 00:00:05]} 60. Ra5 {[%clk 00:01:17]} {[%emt 00:00:23]} Kg6 {[%clk
00:02:11]} {[%emt 00:00:16]} 61. Ra8 {[%clk 00:01:12]} {[%emt 00:00:15]} Nf4
{[%clk 00:01:57]} {[%emt 00:00:24]} 62. Rg8+ {[%clk 00:01:11]} {[%emt
00:00:11]} Kf7 {[%clk 00:01:54]} {[%emt 00:00:13]} 63. Ra8 {[%clk 00:01:15]}
{[%emt 00:00:06]} Ng6+ {[%clk 00:01:27]} {[%emt 00:00:36]} 64. Kh5 {[%clk
00:01:14]} {[%emt 00:00:12]} Ne7 {[%clk 00:01:03]} {[%emt 00:00:35]} 65. Ra7
{[%clk 00:01:08]} {[%emt 00:00:16]} Re6 {[%clk 00:01:06]} {[%emt 00:00:06]} 66.
Rb7 {[%clk 00:01:11]} {[%emt 00:00:07]} Kg7 {[%clk 00:01:10]} {[%emt 00:00:05]}
67. Rb5 {[%clk 00:01:14]} {[%emt 00:00:07]} Rd6 {[%clk 00:01:08]} {[%emt
00:00:12]} 68. g5 {[%clk 00:01:16]} {[%emt 00:00:09]} hxg5 {[%clk 00:01:13]}
{[%emt 00:00:04]} 69. Kxg5 {[%clk 00:01:24]} {[%emt 00:00:02]} 1/2-1/2

[Event "Snabb-SM för veteraner, 65+ 2019"]
[Site "Schackcentrum, Vegagatan 20, Gothenburg, Sweden"]
[Date "2019.10.06"]
[Round "7.4"]
[White "Dolata, Henryk"]
[Black "Landin, Bo"]
[Result "1-0"]
[TimeControl "15 minutes + 10 seconds per move from move one"]
[WhiteFideId "1709046"]
[BlackFideId "1705261"]
[WhiteElo "2064"]
[BlackElo "1959"]

1. e4 {[%clk 00:15:19]} e6 {[%clk 00:15:15]} {[%emt 00:00:05]} 2. b3 {[%clk
00:15:27]} {[%emt 00:00:02]} d5 {[%clk 00:15:22]} {[%emt 00:00:03]} 3. Bb2
{[%clk 00:15:36]} {[%emt 00:00:01]} dxe4 {[%clk 00:15:26]} {[%emt 00:00:07]} 4.
Nc3 {[%clk 00:15:38]} {[%emt 00:00:08]} Nf6 {[%clk 00:15:32]} {[%emt 00:00:03]}
5. g4 {[%clk 00:15:45]} {[%emt 00:00:02]} e5 {[%clk 00:15:12]} {[%emt
00:00:31]} 6. h3 {[%clk 00:15:32]} {[%emt 00:00:23]} b6 {[%clk 00:13:54]}
{[%emt 00:01:28]} 7. Bg2 {[%clk 00:14:48]} {[%emt 00:00:53]} Bb7 {[%clk
00:13:38]} {[%emt 00:00:27]} 8. g5 {[%clk 00:13:31]} {[%emt 00:01:26]} Nfd7
{[%clk 00:12:38]} {[%emt 00:01:11]} 9. Nxe4 {[%clk 00:13:07]} {[%emt 00:00:33]}
Nc5 {[%clk 00:11:02]} {[%emt 00:01:47]} 10. Qe2 {[%clk 00:13:03]} {[%emt
00:00:13]} Nxe4 {[%clk 00:10:53]} {[%emt 00:00:20]} 11. Bxe4 {[%clk 00:13:12]}
{[%emt 00:00:01]} Bxe4 {[%clk 00:08:16]} {[%emt 00:02:47]} 12. Qxe4 {[%clk
00:13:21]} {[%emt 00:00:01]} Nd7 {[%clk 00:08:04]} {[%emt 00:00:22]} 13. Nf3
{[%clk 00:09:28]} {[%emt 00:04:02]} Be7 {[%clk 00:06:13]} {[%emt 00:02:01]} 14.
Nxe5 {[%clk 00:06:54]} {[%emt 00:02:44]} Nxe5 {[%clk 00:05:29]} {[%emt
00:00:54]} 15. Qxe5 {[%clk 00:05:35]} {[%emt 00:01:29]} Rg8 {[%clk 00:01:07]}
{[%emt 00:04:32]} 16. O-O-O {[%clk 00:05:37]} {[%emt 00:00:08]} Qd6 {[%clk
00:00:14]} {[%emt 00:01:03]} 17. Qe4 {[%clk 00:05:35]} {[%emt 00:00:10]} O-O-O
{[%clk 00:00:19]} {[%emt 00:00:07]} 18. h4 {[%clk 00:04:58]} {[%emt 00:00:47]}
Kb8 {[%clk 00:00:27]} {[%emt 00:00:02]} 19. Qxh7 {[%clk 00:04:54]} {[%emt
00:00:14]} f6 {[%clk 00:00:28]} {[%emt 00:00:10]} 20. Qf5 {[%clk 00:02:05]}
{[%emt 00:02:59]} fxg5 {[%clk 00:00:25]} {[%emt 00:00:14]} 21. hxg5 {[%clk
00:02:14]} {[%emt 00:00:02]} Rdf8 {[%clk 00:00:31]} {[%emt 00:00:04]} 22. Qg4
{[%clk 00:01:52]} {[%emt 00:00:27]} Rxf2 {[%clk 00:00:31]} {[%emt 00:00:14]} 23.
Rhe1 {[%clk 00:01:45]} {[%emt 00:00:17]} Rf4 {[%clk 00:00:34]} {[%emt
00:00:07]} 24. Qg2 {[%clk 00:01:47]} {[%emt 00:00:08]} Qd7 {[%clk 00:00:37]}
{[%emt 00:00:08]} 25. Kb1 {[%clk 00:01:45]} {[%emt 00:00:11]} Rf5 {[%clk
00:00:45]} {[%emt 00:00:03]} 26. g6 {[%clk 00:01:41]} {[%emt 00:00:14]} Rg5
{[%clk 00:00:52]} {[%emt 00:00:03]} 27. Qe4 {[%clk 00:01:45]} {[%emt 00:00:05]}
Bd6 {[%clk 00:00:59]} {[%emt 00:00:04]} 28. Rf1 {[%clk 00:01:38]} {[%emt
00:00:16]} Rg4 {[%clk 00:01:05]} {[%emt 00:00:05]} 29. Qd5 {[%clk 00:01:31]}
{[%emt 00:00:15]} Rf4 {[%clk 00:01:09]} {[%emt 00:00:07]} 1-0

[Event "Snabb-SM för veteraner, 65+ 2019"]
[Site "Schackcentrum, Vegagatan 20, Gothenburg, Sweden"]
[Date "2019.10.06"]
[Round "7.5"]
[White "Przysuski, Feliks"]
[Black "Nyberg, Bo"]
[Result "1/2-1/2"]
[TimeControl "15 minutes + 10 seconds per move from move one"]
[WhiteFideId "1712489"]
[BlackFideId "1710583"]
[WhiteElo "2008"]
[BlackElo "1806"]

1. e4 {[%clk 00:15:15]} {[%emt 00:00:03]} e6 {[%clk 00:15:18]} {[%emt
00:00:03]} 2. d4 {[%clk 00:15:20]} {[%emt 00:00:05]} d5 {[%clk 00:15:27]}
{[%emt 00:00:01]} 3. Nd2 {[%clk 00:15:27]} {[%emt 00:00:02]} c5 {[%clk
00:15:29]} {[%emt 00:00:08]} 4. exd5 {[%clk 00:15:33]} {[%emt 00:00:04]} Nf6
{[%clk 00:15:36]} {[%emt 00:00:02]} 5. Ngf3 {[%clk 00:15:38]} {[%emt 00:00:06]}
Nxd5 {[%clk 00:15:44]} {[%emt 00:00:03]} 6. Nb3 {[%clk 00:15:08]} {[%emt
00:00:40]} Nc6 {[%clk 00:15:20]} {[%emt 00:00:33]} 7. Bb5 {[%clk 00:15:04]}
{[%emt 00:00:13]} Qb6 {[%clk 00:15:04]} {[%emt 00:00:26]} 8. Qe2 {[%clk
00:14:46]} {[%emt 00:00:28]} Bd7 {[%clk 00:14:24]} {[%emt 00:00:50]} 9. O-O
{[%clk 00:14:46]} {[%emt 00:00:09]} cxd4 {[%clk 00:13:02]} {[%emt 00:01:33]} 10.
Rd1 {[%clk 00:13:49]} {[%emt 00:01:06]} Bc5 {[%clk 00:11:50]} {[%emt 00:01:23]}
11. Nxc5 {[%clk 00:13:17]} {[%emt 00:00:42]} Qxc5 {[%clk 00:11:58]} {[%emt
00:00:03]} 12. Bxc6 {[%clk 00:13:25]} {[%emt 00:00:02]} Bxc6 {[%clk 00:11:53]}
{[%emt 00:00:15]} 13. Nxd4 {[%clk 00:13:32]} {[%emt 00:00:02]} O-O {[%clk
00:11:34]} {[%emt 00:00:30]} 14. c3 {[%clk 00:12:54]} {[%emt 00:00:48]} Rac8
{[%clk 00:08:56]} {[%emt 00:02:48]} 15. Nb3 {[%clk 00:10:48]} {[%emt 00:02:16]}
Qb6 {[%clk 00:08:03]} {[%emt 00:01:03]} 16. c4 {[%clk 00:10:48]} {[%emt
00:00:10]} Nf6 {[%clk 00:06:35]} {[%emt 00:01:38]} 17. Be3 {[%clk 00:10:56]}
{[%emt 00:00:03]} Qc7 {[%clk 00:06:14]} {[%emt 00:00:31]} 18. Nd4 {[%clk
00:10:08]} {[%emt 00:00:57]} a6 {[%clk 00:06:04]} {[%emt 00:00:21]} 19. Rac1
{[%clk 00:10:10]} {[%emt 00:00:08]} e5 {[%clk 00:04:23]} {[%emt 00:01:51]} 20.
Nf5 {[%clk 00:09:56]} {[%emt 00:00:23]} Rcd8 {[%clk 00:04:02]} {[%emt
00:00:32]} 21. Bg5 {[%clk 00:09:13]} {[%emt 00:00:52]} Rxd1+ {[%clk 00:02:51]}
{[%emt 00:01:21]} 22. Rxd1 {[%clk 00:09:20]} {[%emt 00:00:03]} Ne4 {[%clk
00:02:42]} {[%emt 00:00:20]} 23. Be3 {[%clk 00:08:03]} {[%emt 00:01:26]} g6
{[%clk 00:02:02]} {[%emt 00:00:51]} 24. Ng3 {[%clk 00:06:40]} {[%emt 00:01:32]}
Nxg3 {[%clk 00:02:08]} {[%emt 00:00:05]} 25. hxg3 {[%clk 00:06:46]} {[%emt
00:00:02]} e4 {[%clk 00:02:12]} {[%emt 00:00:08]} 26. b3 {[%clk 00:06:12]}
{[%emt 00:00:45]} Rd8 {[%clk 00:02:12]} {[%emt 00:00:09]} 27. Bd4 {[%clk
00:05:46]} {[%emt 00:00:36]} b5 {[%clk 00:01:53]} {[%emt 00:00:30]} 28. c5
{[%clk 00:05:43]} {[%emt 00:00:12]} f5 {[%clk 00:01:32]} {[%emt 00:00:31]} 29.
Qb2 {[%clk 00:05:49]} {[%emt 00:00:03]} e3 {[%clk 00:01:27]} {[%emt 00:00:16]}
30. f4 {[%clk 00:05:17]} {[%emt 00:00:42]} Qf7 {[%clk 00:01:20]} {[%emt
00:00:17]} 31. Re1 {[%clk 00:04:56]} {[%emt 00:00:31]} Qd5 {[%clk 00:01:08]}
{[%emt 00:00:22]} 32. Bxe3 {[%clk 00:05:03]} {[%emt 00:00:03]} Re8 {[%clk
00:00:56]} {[%emt 00:00:23]} 33. Qf2 {[%clk 00:05:11]} {[%emt 00:00:02]} Re4
{[%clk 00:00:59]} {[%emt 00:00:06]} 34. Qf3 {[%clk 00:03:52]} {[%emt 00:01:29]}
a5 {[%clk 00:01:03]} {[%emt 00:00:06]} 35. Qf2 {[%clk 00:03:25]} {[%emt
00:00:37]} a4 {[%clk 00:01:12]} {[%emt 00:00:02]} 36. bxa4 {[%clk 00:03:00]}
{[%emt 00:00:35]} Rxa4 {[%clk 00:01:20]} {[%emt 00:00:02]} 37. Re2 {[%clk
00:02:54]} {[%emt 00:00:15]} Qd1+ {[%clk 00:01:15]} {[%emt 00:00:16]} 38. Qf1
{[%clk 00:03:01]} {[%emt 00:00:02]} Qxf1+ {[%clk 00:01:22]} {[%emt 00:00:04]}
39. Kxf1 {[%clk 00:03:09]} {[%emt 00:00:02]} Bd5 {[%clk 00:01:29]} {[%emt
00:00:05]} 40. Rc2 {[%clk 00:03:07]} {[%emt 00:00:10]} Rxa2 {[%clk 00:01:33]}
{[%emt 00:00:06]} 41. Rxa2 {[%emt 00:00:02]} Bxa2 {[%emt 00:00:01]} 42. c6
{[%clk 00:03:11]} {[%emt 00:00:03]} Be6 {[%clk 00:01:41]} {[%emt 00:00:02]} 43.
c7 {[%clk 00:03:19]} {[%emt 00:00:02]} Bc8 {[%clk 00:01:49]} {[%emt 00:00:01]}
44. Bc5 {[%clk 00:03:26]} {[%emt 00:00:02]} Kf7 {[%clk 00:01:58]} {[%emt
00:00:02]} 45. Ke2 {[%clk 00:03:25]} {[%emt 00:00:11]} Ke6 {[%clk 00:02:07]}
{[%emt 00:00:01]} 46. Ke3 {[%clk 00:03:32]} {[%emt 00:00:03]} Kd7 {[%clk
00:02:13]} {[%emt 00:00:04]} 47. Bb6 {[%clk 00:03:38]} {[%emt 00:00:03]} Bb7
{[%clk 00:02:14]} {[%emt 00:00:09]} 48. Kd4 {[%clk 00:03:44]} {[%emt 00:00:03]}
Bxg2 {[%clk 00:02:18]} {[%emt 00:00:06]} 49. Kc5 {[%emt 00:00:02]} Kc8 {[%emt
00:00:07]} 50. Kxb5 {[%clk 00:03:43]} {[%emt 00:00:03]} h6 {[%clk 00:02:15]}
{[%emt 00:00:13]} 51. Kc5 {[%clk 00:03:51]} {[%emt 00:00:02]} g5 {[%clk
00:02:21]} {[%emt 00:00:04]} 52. fxg5 {[%clk 00:03:59]} {[%emt 00:00:02]} hxg5
{[%clk 00:02:30]} {[%emt 00:00:01]} 53. Kd4 {[%clk 00:04:07]} {[%emt 00:00:01]}
f4 {[%clk 00:02:37]} {[%emt 00:00:03]} 54. gxf4 {[%emt 00:00:06]} gxf4 {[%emt
00:00:01]} 55. Ke5 {[%emt 00:00:12]} 1/2-1/2